fUSD/lending_fUSD_20240502
["ID","MTS","AMOUNT","RATE_DAILY","PERIOD"]
[325279653,1714679443130,-587.14771819,0.00030136,2]
[325279657,1714679443140,-500.0,0.00030136,2]
[325279660,1714679443150,-600.44,0.00030136,2]
[325279664,1714679443160,-500.0,0.00030136,2]
[325279669,1714679443169,-526.35,0.00030136,2]
[325279673,1714679443179,-500.0,0.00030136,2]
[325279676,1714679443189,-500.0,0.00030136,2]
[325279680,1714679443198,-519.76853289,0.00030136,2]
[325279684,1714679443207,-500.0,0.00030136,2]
[325279686,1714679443217,-500.0,0.00030136,2]
[325279689,1714679443226,-500.0,0.00030136,2]
[325279691,1714679443236,-500.0,0.00030136,2]
[325279692,1714679443246,-500.0,0.00030136,2]
[325279693,1714679443256,-500.0,0.00030136,2]
[325279694,1714679443266,-2276.69,0.00030136,2]
[325279695,1714679443276,-500.0,0.00030136,2]
[325279697,1714679443286,-500.0,0.00030136,2]
[325279699,1714679443296,-500.0,0.00030136,2]
[325279701,1714679443305,-500.0,0.00030136,2]
[325279703,1714679443315,-500.0,0.00030136,2]
[325279705,1714679443325,-895.47,0.00030136,2]
[325279707,1714679443335,-500.0,0.00030136,2]
[325279709,1714679443347,-500.0,0.00030136,2]
[325279711,1714679443356,-500.0,0.00030136,2]
[325279713,1714679443369,-500.0,0.00030136,2]
[325279715,1714679443380,-500.0,0.00030136,2]
[325279718,1714679443392,-500.0,0.00030136,2]
[325279720,1714679443402,-500.0,0.00030136,2]
[325279722,1714679443412,-500.0,0.00030136,2]
[325279724,1714679443421,-500.0,0.00030136,2]
[325279726,1714679443430,-500.0,0.00030136,2]
[325279727,1714679443440,-500.0,0.00030136,2]
[325279729,1714679443451,-4033.98,0.00030136,2]
[325279730,1714679443462,-500.0,0.00030136,2]
[325279731,1714679443472,-1121.66,0.00030136,2]
[325279732,1714679443483,-500.0,0.00030136,2]
[325279733,1714679443492,-8955.51,0.00030136,2]
[325279734,1714679443502,-500.0,0.00030136,2]
[325279735,1714679443512,-1049.61,0.00030136,2]
[325279736,1714679443521,-500.0,0.00030136,2]
[325279737,1714679443531,-500.0,0.00030136,2]
[325279738,1714679443540,-500.0,0.00030136,2]
[325279739,1714679443550,-1319.46,0.00030136,2]
[325279740,1714679443560,-700.9,0.00030136,2]
[325279741,1714679443570,-500.0,0.00030136,2]
[325279742,1714679443581,-500.0,0.00030136,2]
[325279743,1714679443589,-500.0,0.00030136,2]
[325279744,1714679443600,-1250.08,0.00030136,2]
[325279745,1714679443610,-500.0,0.00030136,2]
[325279746,1714679443622,-500.0,0.00030136,2]
[325279748,1714679443632,-500.0,0.00030136,2]
[325279750,1714679443641,-500.0,0.00030136,2]
[325279752,1714679443651,-500.0,0.00030136,2]
[325279754,1714679443660,-500.0,0.00030136,2]
[325279755,1714679443670,-500.0,0.00030136,2]
[325279756,1714679443680,-500.0,0.00030136,2]
[325279758,1714679443689,-500.0,0.00030136,2]
[325279759,1714679443698,-500.0,0.00030136,2]
[325279760,1714679443708,-500.0,0.00030136,2]
[325279761,1714679443717,-693.2,0.00030136,2]
[325279762,1714679443728,-500.0,0.00030136,2]
[325279763,1714679443737,-1629.89,0.00030136,2]
[325279764,1714679443747,-1823.07,0.00030136,2]
[325279765,1714679443757,-500.0,0.00030136,2]
[325279766,1714679443772,-517.18,0.00030136,2]
[325279767,1714679443781,-1350.00298955,0.00030136,2]
[325279771,1714679443797,-2890.12429813,0.00030136,2]
[325279774,1714679443819,-569.99999994,0.00030136,2]
[325279776,1714679443832,-351.899999,0.00030136,2]
[325279777,1714679443843,-497.00000012,0.00030136,2]
[325279778,1714679443856,-260.6,0.00030136,2]
[325279779,1714679443871,-1119.80783631,0.00030136,2]
[325279780,1714679443883,-7897.24487695,0.00030136,2]
[325279781,1714679443893,-500.0,0.00030136,2]
[325279782,1714679443902,-500.0,0.00030136,2]
[325279783,1714679443911,-500.0,0.00030136,2]
[325279784,1714679443920,-500.0,0.00030136,2]
[325279785,1714679443930,-500.0,0.00030136,2]
[325279786,1714679443940,-500.0,0.00030136,2]
[325279787,1714679443950,-500.0,0.00030136,2]
[325279788,1714679443960,-500.0,0.00030136,2]
[325279789,1714679443970,-500.0,0.00030136,2]
[325279790,1714679443979,-500.0,0.00030136,2]
[325279791,1714679443989,-864.25,0.00030136,2]
[325279792,1714679443999,-500.0,0.00030136,2]
[325279793,1714679444008,-500.0,0.00030136,2]
[325279794,1714679444018,-500.0,0.00030136,2]
[325279795,1714679444028,-500.0,0.00030136,2]
[325279796,1714679444037,-1292.14,0.00030136,2]
[325279797,1714679444047,-347.42597109,0.00030136,2]
[325279798,1714679444056,-500.0,0.00030136,2]
[325279799,1714679444065,-618.76,0.00030136,2]
[325279800,1714679444075,-500.0,0.00030136,2]
[325279801,1714679444086,-500.0,0.00030136,2]
[325279802,1714679444096,-2718.40855444,0.00030136,2]
[325279803,1714679444125,-521.97670531,0.00030136,2]
[325279804,1714679444136,-509.53474025,0.00030136,2]
[325279805,1714679444146,-500.0,0.00030136,2]
[325279806,1714679444155,-1074.69,0.00030136,2]
[325279807,1714679444165,-276.1291352,0.00030136,2]
[325279808,1714679444177,-223.8708648,0.00030136,2]
[325279809,1714679444186,-198.89228466,0.00030136,2]
[325279810,1714679444198,-313.26771534,0.00030136,2]
[325279811,1714679444207,-500.0,0.00030136,2]
[325279812,1714679444216,-500.0,0.00030136,2]
[325279813,1714679444226,-1127.11,0.00030136,2]
[325279814,1714679444235,-37.91329539,0.00030136,2]
[325279815,1714679444248,-462.08670461,0.00030136,2]
[325279816,1714679444258,-94.61649908,0.00030136,2]
[325279817,1714679444270,-405.38350092,0.00030136,2]
[325279818,1714679444280,-390.3738331,0.00030136,2]
[325279819,1714679444292,-979.38,0.00030136,2]
[325279829,1714679446357,-155.0,0.00013486,2]
[325279830,1714679446369,-13703.54630937,0.00030136,7]
[325279831,1714679446380,-383999.83836368,0.00030136,7]
[325279832,1714679446392,-1508.406855,0.00030136,7]
[325279833,1714679446403,-700383.32469223,0.00030136,7]
[325279834,1714679446412,-530.8161669,0.00030136,2]
[325279835,1714679446423,-500.0,0.00030136,2]
[325279836,1714679446433,-631.25,0.00030136,2]
[325279837,1714679446443,-967.59,0.00030136,2]
[325279838,1714679446453,-500.0,0.00030136,2]
[325279839,1714679446462,-1081.27,0.00030136,2]
[325279840,1714679446472,-4296.96,0.00030136,2]
[325279841,1714679446481,-500.0,0.00030136,2]
[325279842,1714679446491,-500.0,0.00030136,2]
[325279843,1714679446500,-500.0,0.00030136,2]
[325279844,1714679446509,-1095.07,0.00030136,2]
[325279845,1714679446518,-500.0,0.00030136,2]
[325279846,1714679446528,-1146.71,0.00030136,2]
[325279847,1714679446537,-391.96993915,0.00030136,2]
[325279848,1714679446547,-5341.96,0.00030136,2]
[325279849,1714679446556,-1650.65,0.00030136,2]
[325279850,1714679446565,-500.0,0.00030136,2]
[325279851,1714679446576,-500.0,0.00030136,2]
[325279852,1714679446585,-860.03,0.00030136,2]
[325279853,1714679446595,-500.0,0.00030136,2]
[325279854,1714679446604,-648.38,0.00030136,2]
[325279855,1714679446613,-500.0,0.00030136,2]
[325279856,1714679446626,-889.47,0.00030136,2]
[325279857,1714679446635,-1954.74,0.00030136,2]
[325279858,1714679446644,-1233.4,0.00030136,2]
[325279859,1714679446653,-502.31309168,0.00030136,2]
[325279860,1714679446662,-1752.89,0.00030136,2]
[325279861,1714679446672,-500.0,0.00030136,2]
[325279862,1714679446681,-500.0,0.00030136,2]
[325279863,1714679446691,-863.84,0.00030136,2]
[325279864,1714679446701,-15201.22,0.00030136,2]
[325279865,1714679446711,-433.41,0.00030136,2]
[325279866,1714679446720,-7254.97,0.00030136,2]
[325279867,1714679446730,-816.62,0.00030136,2]
[325279868,1714679446740,-500.0,0.00030136,2]
[325279869,1714679446750,-896.03,0.00030136,2]
[325279870,1714679446761,-20067.58,0.00030136,2]
[325279871,1714679446771,-500.0,0.00030136,2]
[325279872,1714679446786,-997.71,0.00030136,2]
[325279873,1714679446796,-569.53,0.00030136,2]
[325279874,1714679446806,-2529.99,0.00030136,2]
[325279875,1714679446815,-216.00246147,0.00030136,2]
[325279876,1714679446826,-1238.03,0.00030136,2]
[325279877,1714679446835,-2629.15,0.00030136,2]
[325279878,1714679446844,-1032.28,0.00030136,2]
[325279879,1714679446855,-500.0,0.00030136,2]
[325279880,1714679446866,-1474.04,0.00030136,2]
[325279881,1714679446877,-500.0,0.00030136,2]
[325279882,1714679446886,-500.0,0.00030136,2]
[325279883,1714679446895,-3116.86,0.00030136,2]
[325279884,1714679446905,-500.0,0.00030136,2]
[325279885,1714679446915,-500.0,0.00030136,2]
[325279886,1714679446924,-1171.7,0.00030136,2]
[325279887,1714679446933,-257.64670056,0.00030136,2]
[325279888,1714679446943,-3019.68,0.00030136,2]
[325279889,1714679446954,-1388.44,0.00030136,2]
[325279890,1714679446963,-1500.0,0.00030136,2]
[325279891,1714679446973,-670.98,0.00030136,2]
[325279892,1714679446983,-500.0,0.00030136,2]
[325279893,1714679446994,-500.0,0.00030136,2]
[325279894,1714679447004,-500.0,0.00030136,2]
[325279895,1714679447016,-590.60271077,0.00030136,2]
[325279896,1714679447026,-500.0,0.00030136,2]
[325279897,1714679447038,-500.0,0.00030136,2]
[325279898,1714679447047,-1737.43,0.00030136,2]
[325279899,1714679447057,-500.0,0.00030136,2]
[325279900,1714679447068,-500.0,0.00030136,2]
[325279901,1714679447078,-500.0,0.00030136,2]
[325279902,1714679447087,-856.33,0.00030136,2]
[325279903,1714679447096,-501.50195184,0.00030136,2]
[325279904,1714679447106,-500.0,0.00030136,2]
[325279905,1714679447115,-2061.24,0.00030136,2]
[325279906,1714679447126,-500.0,0.00030136,2]
[325279907,1714679447135,-6411.27,0.00030136,2]
[325279908,1714679447144,-500.0,0.00030136,2]
[325279909,1714679447153,-500.0,0.00030136,2]
[325279910,1714679447163,-500.0,0.00030136,2]
[325279911,1714679447172,-500.0,0.00030136,2]
[325279912,1714679447182,-2119.03,0.00030136,2]
[325279913,1714679447194,-500.0,0.00030136,2]
[325279914,1714679447203,-712.14,0.00030136,2]
[325279915,1714679447213,-500.0,0.00030136,2]
[325279916,1714679447223,-5423.85,0.00030136,2]
[325279917,1714679447233,-549.98,0.00030136,2]
[325279918,1714679447243,-500.0,0.00030136,2]
[325279919,1714679447253,-500.0,0.00030136,2]
[325279920,1714679447268,-1150.45,0.00030136,2]
[325279921,1714679447277,-1600.83,0.00030136,2]
[325279922,1714679447287,-2375.53,0.00030136,2]
[325279923,1714679447297,-500.0,0.00030136,2]
[325279924,1714679447307,-515.39923497,0.00030136,2]
[325279925,1714679447317,-2015.14,0.00030136,2]
[325279926,1714679447326,-500.0,0.00030136,2]
[325279927,1714679447336,-583.61,0.00030136,2]
[325279928,1714679447346,-1073.94,0.00030136,2]
[325279929,1714679447356,-500.0,0.00030136,2]
[325279930,1714679447366,-2789.45,0.00030136,2]
[325279931,1714679447376,-560.33,0.00030136,2]
[325279932,1714679447386,-500.0,0.00030136,2]
[325279933,1714679447396,-500.0,0.00030136,2]
[325279934,1714679447406,-500.0,0.00030136,2]
[325279935,1714679447415,-506.60102831,0.00030136,2]
[325279936,1714679447425,-813.1,0.00030136,2]
[325279937,1714679447434,-11312.06,0.00030136,2]
[325279938,1714679447444,-500.0,0.00030136,2]
[325279939,1714679447454,-2549.62,0.00030136,2]
[325279940,1714679447463,-1732.56,0.00030136,2]
[325279941,1714679447472,-1217.14,0.00030136,2]
[325279942,1714679447481,-500.0,0.00030136,2]
[325279943,1714679447491,-500.0,0.00030136,2]
[325279944,1714679447500,-628.64,0.00030136,2]
[325279945,1714679447510,-944.17,0.00030136,2]
[325279946,1714679447519,-500.0,0.00030136,2]
[325279947,1714679447529,-500.0,0.00030136,2]
[325279948,1714679447538,-2896.64,0.00030136,2]
[325279949,1714679447547,-500.0,0.00030136,2]
[325279950,1714679447556,-5273.67,0.00030136,2]
[325279951,1714679447565,-500.0,0.00030136,2]
[325279952,1714679447575,-500.0,0.00030136,2]
[325279953,1714679447584,-4102.41,0.00030136,2]
[325279954,1714679447594,-2110.64,0.00030136,2]
[325279955,1714679447603,-1120.31,0.00030136,2]
[325279956,1714679447613,-500.0,0.00030136,2]
[325279957,1714679447626,-500.0,0.00030136,2]
[325279958,1714679447635,-1276.67,0.00030136,2]
[325279959,1714679447645,-270.56219143,0.00030136,2]
[325279960,1714679447655,-402.77291458,0.00030136,2]
[325279961,1714679447664,-500.0,0.00030136,2]
[325279962,1714679447673,-500.0,0.00030136,2]
[325279963,1714679447683,-500.0,0.00030136,2]
[325279964,1714679447692,-757.5,0.00030136,2]
[325279965,1714679447701,-500.0,0.00030136,2]
[325279966,1714679447712,-937.87,0.00030136,2]
[325279967,1714679447721,-518.72,0.00030136,2]
[325279968,1714679447731,-1034.1,0.00030136,2]
[325279969,1714679447741,-500.0,0.00030136,2]
[325279970,1714679447751,-500.0,0.00030136,2]
[325279971,1714679447765,-1216.64,0.00030136,2]
[325279972,1714679447775,-500.0,0.00030136,2]
[325279973,1714679447785,-1752.32,0.00030136,2]
[325279974,1714679447795,-2382.25,0.00030136,2]
[325279975,1714679447806,-2617.66,0.00030136,2]
[325279976,1714679447816,-500.0,0.00030136,2]
[325279977,1714679447825,-500.0,0.00030136,2]
[325279978,1714679447836,-500.0,0.00030136,2]
[325279979,1714679447849,-1002.57,0.00030136,2]
[325279980,1714679447859,-1532.14,0.00030136,2]
[325279981,1714679447870,-500.0,0.00030136,2]
[325279982,1714679447882,-500.0,0.00030136,2]
[325279983,1714679447891,-215.16935566,0.00030136,2]
[325279984,1714679447899,-500.0,0.00030136,2]
[325279985,1714679447909,-1142.67,0.00030136,2]
[325279986,1714679447918,-500.0,0.00030136,2]
[325279987,1714679447927,-500.0,0.00030136,2]
[325279988,1714679447937,-500.0,0.00030136,2]
[325279989,1714679447946,-500.0,0.00030136,2]
[325279990,1714679447955,-500.0,0.00030136,2]
[325279991,1714679447964,-500.0,0.00030136,2]
[325279992,1714679447975,-500.0,0.00030136,2]
[325279993,1714679447984,-2195.69,0.00030136,2]
[325279994,1714679447994,-500.0,0.00030136,2]
[325279995,1714679448003,-500.0,0.00030136,2]
[325279996,1714679448014,-500.0,0.00030136,2]
[325279997,1714679448024,-1867.03,0.00030136,2]
[325279998,1714679448034,-500.0,0.00030136,2]
[325279999,1714679448043,-786.96,0.00030136,2]
[325280000,1714679448053,-500.0,0.00030136,2]
[325280001,1714679448063,-750.7,0.00030136,2]
[325280002,1714679448073,-500.44760964,0.00030136,2]
[325280003,1714679448083,-500.0,0.00030136,2]
[325280004,1714679448092,-1346.98,0.00030136,2]
[325280005,1714679448103,-681.66,0.00030136,2]
[325280006,1714679448113,-2596.2,0.00030136,2]
[325280007,1714679448127,-1197.76,0.00030136,2]
[325280008,1714679448136,-1591.57,0.00030136,4]
[325280009,1714679448146,-1591.57,0.00030136,4]
[325280010,1714679448155,-1591.57,0.00030136,4]
[325280011,1714679448165,-1591.57,0.00030136,4]
[325280012,1714679448174,-1591.57,0.00030136,4]
[325280013,1714679448183,-500.0,0.00030136,2]
[325280014,1714679448192,-1591.57,0.00030136,4]
[325280015,1714679448201,-1591.57,0.00030136,4]
[325280016,1714679448210,-500.0,0.00030136,2]
[325280017,1714679448220,-1591.57,0.00030136,4]
[325280018,1714679448228,-1591.57,0.00030136,4]
[325280019,1714679448238,-653.72,0.00030136,2]
[325280020,1714679448247,-1591.57,0.00030136,4]
[325280021,1714679448256,-500.0,0.00030136,2]
[325280022,1714679448266,-1591.57,0.00030136,4]
[325280023,1714679448276,-500.0,0.00030136,2]
[325280024,1714679448285,-1591.57,0.00030136,4]
[325280025,1714679448294,-1591.57,0.00030136,4]
[325280026,1714679448303,-1591.57,0.00030136,4]
[325280027,1714679448313,-689.79,0.00030136,2]
[325280028,1714679448323,-17194.41,0.00030136,2]
[325280029,1714679448332,-1591.57,0.00030136,4]
[325280030,1714679448343,-1591.57,0.00030136,4]
[325280031,1714679448353,-3211.52,0.00030136,2]
[325280032,1714679448363,-1591.57,0.00030136,4]
[325280033,1714679448376,-500.0,0.00030136,2]
[325280034,1714679448385,-500.0,0.00030136,2]
[325280035,1714679448394,-1591.57,0.00030136,4]
[325280036,1714679448403,-1591.57,0.00030136,4]
[325280037,1714679448416,-500.0,0.00030136,2]
[325280038,1714679448431,-500.0,0.00030136,2]
[325280039,1714679448445,-500.0,0.00030136,2]
[325280040,1714679448459,-709.65,0.00030136,2]
[325280041,1714679448470,-500.0,0.00030136,2]
[325280042,1714679448484,-500.0,0.00030136,2]
[325280043,1714679448496,-1284.83,0.00030136,2]
[325280044,1714679448509,-500.0,0.00030136,2]
[325280045,1714679448523,-500.0,0.00030136,2]
[325280046,1714679448537,-17481.07,0.00030136,2]
[325280047,1714679448553,-500.0,0.00030136,2]
[325280048,1714679448567,-6266.98,0.00030136,2]
[325280049,1714679448580,-501.44371376,0.00030136,2]
[325280050,1714679448593,-8737.63,0.00030136,2]
[325280051,1714679448605,-500.0,0.00030136,2]
[325280052,1714679448620,-1478.37,0.00030136,2]
[325280053,1714679448633,-500.0,0.00030136,2]
[325280054,1714679448645,-500.0,0.00030136,2]
[325280055,1714679448656,-501.08445029,0.00030136,2]
[325280056,1714679448666,-1489.76,0.00030136,2]
[325280057,1714679448679,-500.0,0.00030136,2]
[325280058,1714679448692,-552.06309359,0.00030136,4]
[325280059,1714679448704,-3872.12,0.00030136,2]
[325280060,1714679448717,-1762.03,0.00030136,2]
[325280061,1714679448730,-500.0,0.00030136,2]
[325280062,1714679448746,-559.6,0.00030136,2]
[325280063,1714679448760,-500.0,0.00030136,2]
[325280064,1714679448773,-500.0,0.00030136,2]
[325280065,1714679448787,-857.86,0.00030136,2]
[325280066,1714679448797,-568.77,0.00030136,2]
[325280067,1714679448810,-500.0,0.00030136,2]
[325280068,1714679448824,-500.0,0.00030136,2]
[325280069,1714679448836,-500.0,0.00030136,2]
[325280070,1714679448851,-500.0,0.00030136,2]
[325280071,1714679448861,-500.0,0.00030136,2]
[325280072,1714679448874,-3537.02,0.00030136,2]
[325280073,1714679448885,-1112.55,0.00030136,2]
[325280074,1714679448898,-2959.3,0.00030136,2]
[325280075,1714679448909,-500.0,0.00030136,2]
[325280076,1714679448921,-500.0,0.00030136,2]
[325280077,1714679448933,-500.0,0.00030136,2]
[325280078,1714679448944,-35824.29,0.00030136,2]
[325280079,1714679448955,-500.0,0.00030136,2]
[325280080,1714679448967,-926.44,0.00030136,2]
[325280081,1714679448981,-500.0,0.00030136,2]
[325280082,1714679448993,-500.0,0.00030136,2]
[325280083,1714679449006,-500.0,0.00030136,2]
[325280084,1714679449018,-500.0,0.00030136,2]
[325280085,1714679449035,-500.0,0.00030136,2]
[325280086,1714679449051,-500.0,0.00030136,2]
[325280087,1714679449063,-500.0,0.00030136,2]
[325280088,1714679449076,-673.09,0.00030136,2]
[325280089,1714679449087,-500.0,0.00030136,2]
[325280090,1714679449100,-500.0,0.00030136,2]
[325280091,1714679449112,-475.04063442,0.00030136,2]
[325280092,1714679449126,-1967.8,0.00030136,2]
[325280093,1714679449137,-500.0,0.00030136,2]
[325280094,1714679449148,-1030.02,0.00030136,2]
[325280095,1714679449159,-770.52,0.00030136,2]
[325280096,1714679449170,-500.0,0.00030136,2]
[325280097,1714679449182,-500.0,0.00030136,2]
[325280098,1714679449194,-500.0,0.00030136,2]
[325280099,1714679449205,-500.0,0.00030136,2]
[325280100,1714679449216,-500.0,0.00030136,2]
[325280101,1714679449227,-3569.89,0.00030136,2]
[325280102,1714679449239,-5497.29,0.00030136,2]
[325280103,1714679449251,-1410.81,0.00030136,2]
[325280104,1714679449263,-500.0,0.00030136,2]
[325280105,1714679449274,-500.0,0.00030136,2]
[325280106,1714679449285,-500.0,0.00030136,2]
[325280107,1714679449297,-848.82,0.00030136,2]
[325280108,1714679449308,-500.0,0.00030136,2]
[325280109,1714679449319,-500.0,0.00030136,2]
[325280110,1714679449331,-500.0,0.00030136,2]
[325280111,1714679449345,-500.0,0.00030136,2]
[325280112,1714679449357,-500.0,0.00030136,2]
[325280113,1714679449368,-500.0,0.00030136,2]
[325280114,1714679449380,-500.0,0.00030136,2]
[325280115,1714679449391,-500.0,0.00030136,2]
[325280116,1714679449402,-855.14,0.00030136,2]
[325280117,1714679449413,-1126.39,0.00030136,2]
[325280118,1714679449424,-500.0,0.00030136,2]
[325280119,1714679449435,-4801.9,0.00030136,2]
[325280120,1714679449446,-500.0,0.00030136,2]
[325280121,1714679449457,-500.0,0.00030136,2]
[325280122,1714679449469,-1944.2,0.00030136,2]
[325280123,1714679449480,-500.0,0.00030136,2]
[325280124,1714679449491,-1753.32,0.00030136,2]
[325280125,1714679449503,-12085.36,0.00030136,2]
[325280126,1714679449514,-500.0,0.00030136,2]
[325280127,1714679449525,-3087.12,0.00030136,2]
[325280128,1714679449536,-500.0,0.00030136,2]
[325280129,1714679449548,-4646.99,0.00030136,2]
[325280130,1714679449560,-500.0,0.00030136,2]
[325280131,1714679449571,-500.0,0.00030136,2]
[325280132,1714679449584,-500.0,0.00030136,2]
[325280133,1714679449594,-500.0,0.00030136,2]
[325280134,1714679449606,-500.0,0.00030136,2]
[325280135,1714679449618,-500.0,0.00030136,2]
[325280136,1714679449630,-500.0,0.00030136,2]
[325280137,1714679449641,-500.0,0.00030136,2]
[325280138,1714679449652,-1662.71,0.00030136,2]
[325280139,1714679449664,-500.0,0.00030136,2]
[325280140,1714679449675,-500.0,0.00030136,2]
[325280141,1714679449687,-500.0,0.00030136,2]
[325280142,1714679449699,-500.0,0.00030136,2]
[325280143,1714679449710,-500.0,0.00030136,2]
[325280144,1714679449721,-500.0,0.00030136,2]
[325280145,1714679449732,-500.0,0.00030136,2]
[325280146,1714679449743,-500.0,0.00030136,2]
[325280147,1714679449754,-3507.11,0.00030136,2]
[325280148,1714679449771,-2449.61,0.00030136,2]
[325280149,1714679449782,-7133.48,0.00030136,2]
[325280150,1714679449793,-604.52,0.00030136,2]
[325280151,1714679449804,-500.0,0.00030136,2]
[325280152,1714679449815,-2636.62,0.00030136,2]
[325280153,1714679449829,-3243.02,0.00030136,2]
[325280154,1714679449840,-9802.85,0.00030136,2]
[325280155,1714679449854,-3016.24,0.00030136,2]
[325280156,1714679449867,-500.0,0.00030136,2]
[325280157,1714679449880,-1348.54,0.00030136,2]
[325280158,1714679449891,-500.0,0.00030136,2]
[325280159,1714679449902,-150.0,0.00030136,2]
[325280160,1714679449915,-176.70907888,0.00030136,2]
[325280161,1714679449926,-987.23,0.00030136,2]
[325280162,1714679449937,-2140.47,0.00030136,2]
[325280163,1714679449948,-500.0,0.00030136,2]
[325280164,1714679449960,-500.0,0.00030136,2]
[325280165,1714679449971,-930.7,0.00030136,2]
[325280166,1714679449982,-504.01457232,0.00030136,2]
[325280167,1714679449995,-511.52,0.00030136,2]
[325280168,1714679450006,-500.0,0.00030136,2]
[325280169,1714679450017,-500.0,0.00030136,2]
[325280170,1714679450028,-500.0,0.00030136,2]
[325280171,1714679450039,-4536.72,0.00030136,2]
[325280172,1714679450051,-2208.09,0.00030136,2]
[325280173,1714679450063,-500.0,0.00030136,2]
[325280174,1714679450074,-500.0,0.00030136,2]
[325280175,1714679450085,-500.0,0.00030136,2]
[325280176,1714679450096,-500.0,0.00030136,2]
[325280177,1714679450107,-500.0,0.00030136,2]
[325280178,1714679450118,-500.0,0.00030136,2]
[325280179,1714679450131,-500.0,0.00030136,2]
[325280180,1714679450143,-500.0,0.00030136,2]
[325280181,1714679450155,-3160.12,0.00030136,2]
[325280182,1714679450166,-1354.02,0.00030136,2]
[325280183,1714679450178,-887.1,0.00030136,2]
[325280184,1714679450191,-500.0,0.00030136,2]
[325280185,1714679450203,-500.0,0.00030136,2]
[325280186,1714679450214,-962.84,0.00030136,2]
[325280187,1714679450226,-553.93,0.00030136,2]
[325280188,1714679450238,-667.6,0.00030136,2]
[325280189,1714679450249,-500.0,0.00030136,2]
[325280190,1714679450260,-500.0,0.00030136,2]
[325280191,1714679450272,-757.24,0.00030136,2]
[325280192,1714679450283,-2812.12,0.00030136,2]
[325280193,1714679450294,-500.0,0.00030136,2]
[325280194,1714679450305,-500.0,0.00030136,2]
[325280195,1714679450317,-1322.04,0.00030136,2]
[325280196,1714679450328,-4871.54,0.00030136,2]
[325280197,1714679450342,-500.0,0.00030136,2]
[325280198,1714679450353,-6582.93,0.00030136,2]
[325280199,1714679450364,-500.0,0.00030136,2]
[325280200,1714679450380,-2039.06,0.00030136,2]
[325280201,1714679450390,-500.0,0.00030136,2]
[325280202,1714679450402,-500.0,0.00030136,2]
[325280203,1714679450413,-500.0,0.00030136,2]
[325280204,1714679450424,-1283.1,0.00030136,2]
[325280205,1714679450436,-651.78,0.00030136,2]
[325280206,1714679450447,-3001.02,0.00030136,2]
[325280207,1714679450459,-2228.76,0.00030136,2]
[325280208,1714679450470,-757.9,0.00030136,2]
[325280209,1714679450481,-500.0,0.00030136,2]
[325280210,1714679450491,-500.0,0.00030136,2]
[325280211,1714679450502,-500.0,0.00030136,2]
[325280212,1714679450513,-500.0,0.00030136,2]
[325280213,1714679450524,-15914.8,0.00030136,2]
[325280214,1714679450535,-500.0,0.00030136,2]
[325280215,1714679450546,-500.0,0.00030136,2]
[325280216,1714679450558,-3015.78,0.00030136,2]